fUSD/lending_fUSD_20241225
["ID","MTS","AMOUNT","RATE_DAILY","PERIOD"]
[346602369,1735123978170,-908.76,0.00010741,2]
[346602370,1735123978212,-500.0,0.00010741,2]
[346602371,1735123978257,-500.0,0.00010741,2]
[346602372,1735123978307,-500.0,0.00010741,2]
[346602373,1735123978350,-500.0,0.00010741,2]
[346602374,1735123978393,-500.0,0.00010741,2]
[346602375,1735123978443,-500.0,0.00010741,2]
[346602376,1735123978485,-899.01,0.00010741,2]
[346602377,1735123978534,-500.0,0.00010741,2]
[346602378,1735123978578,-500.0,0.00010741,2]
[346602379,1735123978621,-500.0,0.00010741,2]
[346602380,1735123978667,-500.0,0.00010741,2]
[346602381,1735123978710,-1128.34,0.00010741,2]
[346602382,1735123978760,-500.0,0.00010741,2]
[346602383,1735123978808,-861.77,0.00010741,2]
[346602384,1735123978855,-664.24,0.00010741,2]
[346602385,1735123978901,-799.2,0.00010741,2]
[346602386,1735123978950,-500.0,0.00010741,2]
[346602387,1735123978996,-500.0,0.00010741,2]
[346602388,1735123979040,-1651.33,0.00010741,2]
[346602389,1735123979085,-1183.03,0.00010741,2]
[346602390,1735123979128,-595.16,0.00010741,2]
[346602391,1735123979172,-500.0,0.00010741,2]
[346602392,1735123979217,-741.31,0.00010741,2]
[346602393,1735123979268,-500.0,0.00010741,2]
[346602394,1735123979315,-500.0,0.00010741,2]
[346602395,1735123979362,-1297.69,0.00010741,2]
[346602396,1735123979403,-2725.44,0.00010741,2]
[346602397,1735123979449,-1159.71,0.00010741,2]
[346602398,1735123979491,-1142.25,0.00010741,2]
[346602399,1735123979536,-1427.37,0.00010741,2]
[346602400,1735123979579,-507.68,0.00010741,2]
[346602401,1735123979621,-812.86,0.00010741,2]
[346602402,1735123979661,-500.0,0.00010741,2]
[346602403,1735123979700,-500.0,0.00010741,2]
[346602404,1735123979742,-1108.97,0.00010741,2]
[346602405,1735123979786,-757.33,0.00010741,2]
[346602406,1735123979832,-500.0,0.00010741,2]
[346602407,1735123979877,-1679.76,0.00010741,2]
[346602408,1735123979922,-500.0,0.00010741,2]
[346602409,1735123979971,-670.49,0.00010741,2]
[346602410,1735123980022,-500.0,0.00010741,2]
[346602411,1735123980074,-500.0,0.00010741,2]
[346602412,1735123980126,-673.55,0.00010741,2]
[346602413,1735123980182,-500.0,0.00010741,2]
[346602414,1735123980233,-500.0,0.00010741,2]
[346602415,1735123980283,-500.0,0.00010741,2]
[346602416,1735123980331,-881.61,0.00010741,2]
[346602417,1735123980379,-659.9,0.00010741,2]
[346602418,1735123980424,-500.0,0.00010741,2]
[346602419,1735123980467,-500.0,0.00010741,2]
[346602420,1735123980514,-500.0,0.00010741,2]
[346602421,1735123980559,-1334.65,0.00010741,2]
[346602422,1735123980672,-809.37,0.00010741,2]
[346602423,1735123980714,-500.0,0.00010741,2]
[346602424,1735123980757,-500.0,0.00010741,2]
[346602425,1735123980797,-1767.33,0.00010741,2]
[346602426,1735123980841,-606.64,0.00010741,2]
[346602427,1735123980883,-500.0,0.00010741,2]
[346602428,1735123980926,-500.0,0.00010741,2]
[346602429,1735123980967,-160.89772065,0.00010741,2]
[346602430,1735123981010,-1307.03,0.00010741,2]
[346602431,1735123981051,-1231.6,0.00010741,2]
[346602432,1735123981093,-500.0,0.00010741,2]
[346602433,1735123981134,-500.0,0.00010741,2]
[346602434,1735123981176,-687.97,0.00010741,2]
[346602435,1735123981218,-552.67,0.00010741,2]
[346602436,1735123981263,-500.0,0.00010741,2]
[346602437,1735123981306,-1249.86,0.00010741,2]
[346602438,1735123981351,-1284.88,0.00010741,2]
[346602439,1735123981392,-500.0,0.00010741,2]
[346602440,1735123981434,-1100.64,0.00010741,2]
[346602441,1735123981478,-500.0,0.00010741,2]
[346602442,1735123981523,-850.42,0.00010741,2]
[346602443,1735123981565,-500.0,0.00010741,2]
[346602444,1735123981605,-500.0,0.00010741,2]
[346602445,1735123981646,-994.82,0.00010741,2]
[346602446,1735123981688,-236.35,0.00010741,2]
[346602447,1735123981730,-500.0,0.00010741,2]
[346602448,1735123981779,-1496.34,0.00010741,2]
[346602449,1735123981825,-817.31,0.00010741,2]
[346602450,1735123981873,-712.14,0.00010741,2]
[346602451,1735123981914,-1209.55,0.00010741,2]
[346602452,1735123981959,-1201.37,0.00010741,2]
[346602453,1735123982000,-500.0,0.00010741,2]
[346602454,1735123982043,-500.0,0.00010741,2]
[346602455,1735123982084,-513.01,0.00010741,2]
[346602456,1735123982128,-1013.49,0.00010741,2]
[346602457,1735123982176,-1013.49,0.00010741,2]
[346602458,1735123982223,-564.37,0.00010741,2]
[346602459,1735123982269,-1231.95,0.00010741,2]
[346602460,1735123982314,-1142.83,0.00010741,2]
[346602461,1735123982355,-770.51,0.00010741,2]
[346602462,1735123982402,-548.91,0.00010741,2]
[346602463,1735123982449,-1081.6,0.00010741,2]
[346602464,1735123982492,-202.97539979,0.00010741,2]
[346602465,1735123982542,-1858.46,0.00010741,2]
[346602466,1735123982588,-500.0,0.00010741,2]
[346602467,1735123982629,-500.0,0.00010741,2]
[346602468,1735123982671,-1306.98,0.00010741,2]
[346602469,1735123982713,-500.0,0.00010741,2]
[346602470,1735123982759,-500.0,0.00010741,2]
[346602471,1735123982808,-2452.91,0.00010741,2]
[346602472,1735123982855,-1048.75,0.00010741,2]
[346602473,1735123982898,-1263.71,0.00010741,2]
[346602474,1735123982947,-500.0,0.00010741,2]
[346602475,1735123982994,-604.41,0.00010741,2]
[346602476,1735123983041,-500.0,0.00010741,2]
[346602477,1735123983091,-1520.77,0.00010741,2]
[346602478,1735123983138,-180.38650903,0.00010741,2]
[346602479,1735123983184,-1970.0,0.00010741,2]
[346602480,1735123983231,-823.95,0.00010741,2]
[346602481,1735123983277,-500.0,0.00010741,2]
[346602482,1735123983324,-500.0,0.00010741,2]
[346602483,1735123983371,-1359.23,0.00010741,2]
[346602484,1735123983422,-1156.27,0.00010741,2]
[346602485,1735123983465,-500.0,0.00010741,2]
[346602486,1735123983512,-500.0,0.00010741,2]
[346602487,1735123983559,-500.0,0.00010741,2]
[346602488,1735123983608,-513.31,0.00010741,2]
[346602489,1735123983656,-639.03,0.00010741,2]
[346602490,1735123983705,-1839.64,0.00010741,2]
[346602491,1735123983756,-1260.21,0.00010741,2]
[346602492,1735123983806,-500.0,0.00010741,2]
[346602493,1735123983856,-1817.61,0.00010741,2]
[346602494,1735123983904,-500.0,0.00010741,2]
[346602495,1735123983954,-950.77,0.00010741,2]
[346602496,1735123984002,-500.0,0.00010741,2]
[346602497,1735123984047,-1170.85,0.00010741,2]
[346602498,1735123984096,-500.0,0.00010741,2]
[346602499,1735123984141,-500.0,0.00010741,2]
[346602500,1735123984188,-1838.6,0.00010741,2]
[346602501,1735123984234,-500.0,0.00010741,2]
[346602502,1735123984282,-2502.46,0.00010741,2]
[346602503,1735123984328,-1400.43,0.00010741,2]
[346602504,1735123984372,-500.0,0.00010741,2]
[346602505,1735123984419,-801.56,0.00010741,2]
[346602506,1735123984463,-500.0,0.00010741,2]
[346602507,1735123984509,-1319.87,0.00010741,2]
[346602508,1735123984556,-1080.44,0.00010741,2]
[346602509,1735123984602,-1580.81,0.00010741,2]
[346602510,1735123984647,-500.0,0.00010741,2]
[346602511,1735123984691,-538.39,0.00010741,2]
[346602512,1735123984736,-444.29358768,0.00010741,2]
[346602513,1735123984779,-697.81,0.00010741,2]
[346602514,1735123984822,-474.78976384,0.00010741,2]
[346602515,1735123984868,-516.73193575,0.00010741,2]
[346602516,1735123984913,-500.0,0.00010741,2]
[346602517,1735123984960,-548.66,0.00010741,2]
[346602518,1735123985007,-1539.71,0.00010741,2]
[346602519,1735123985058,-1862.08,0.00010741,2]
[346602520,1735123985108,-2758.57,0.00010741,2]
[346602521,1735123985156,-1444.61,0.00010741,2]
[346602522,1735123985204,-607.64,0.00010741,2]
[346602523,1735123985255,-1802.49,0.00010741,2]
[346602524,1735123985301,-500.0,0.00010741,2]
[346602525,1735123985353,-1569.27,0.00010741,2]
[346602526,1735123985398,-500.0,0.00010741,2]
[346602527,1735123985448,-504.85240761,0.00010741,2]
[346602528,1735123985495,-1142.88,0.00010741,2]
[346602529,1735123985551,-500.0,0.00010741,2]
[346602530,1735123985610,-672.98,0.00010741,2]
[346602531,1735123985665,-1200.5,0.00010741,2]
[346602532,1735123985717,-657.26,0.00010741,2]
[346602533,1735123985770,-500.0,0.00010741,2]
[346602534,1735123985818,-500.0,0.00010741,2]
[346602535,1735123985868,-524.08,0.00010741,2]
[346602536,1735123985920,-254.1528624,0.00010741,2]
[346602537,1735123985974,-479.10382871,0.00010741,2]
[346602538,1735123986024,-1063.48,0.00010741,2]
[346602539,1735123986079,-500.0,0.00010741,2]
[346602540,1735123986129,-500.0,0.00010741,2]
[346602541,1735123986180,-1068.24,0.00010741,2]
[346602542,1735123986229,-1438.42,0.00010741,2]
[346602543,1735123986282,-500.0,0.00010741,2]
[346602544,1735123986331,-198.90463833,0.00010741,2]
[346602545,1735123986384,-871.52,0.00010741,2]
[346602546,1735123986435,-2339.81,0.00010741,2]
[346602547,1735123986490,-404.0974999,0.00010741,2]
[346602548,1735123986542,-500.0,0.00010741,2]
[346602549,1735123986593,-500.0,0.00010741,2]
[346602550,1735123986641,-1694.59,0.00010741,2]
[346602551,1735123986690,-500.0,0.00010741,2]
[346602552,1735123986735,-865.12,0.00010741,2]
[346602553,1735123986785,-1519.96,0.00010741,2]
[346602554,1735123986830,-2752.14,0.00010741,2]
[346602555,1735123986876,-1184.21,0.00010741,2]
[346602556,1735123986922,-501.18,0.00010741,2]
[346602557,1735123986967,-1007.58,0.00010741,2]
[346602558,1735123987011,-1068.96,0.00010741,2]
[346602559,1735123987055,-1364.22,0.00010741,2]
[346602560,1735123987097,-843.54,0.00010741,2]
[346602561,1735123987141,-1314.59,0.00010741,2]
[346602562,1735123987184,-2665.45,0.00010741,2]
[346602563,1735123987229,-2254.43,0.00010741,2]
[346602564,1735123987274,-2868.91,0.00010741,2]
[346602565,1735123987320,-15765.17,0.00010741,2]
[346602566,1735123987365,-500.0,0.00010741,2]
[346602567,1735123987411,-961.77,0.00010741,2]
[346602568,1735123987460,-500.0,0.00010741,2]
[346602569,1735123987510,-500.0,0.00010741,2]
[346602570,1735123987562,-507.05743493,0.00010741,2]
[346602571,1735123987608,-2900.38,0.00010741,2]
[346602572,1735123987653,-3691.38,0.00010741,2]
[346602573,1735123987699,-992.97,0.00010741,2]
[346602574,1735123987744,-500.0,0.00010741,2]
[346602575,1735123987785,-500.0,0.00010741,2]
[346602576,1735123987829,-1365.06,0.00010741,2]
[346602577,1735123987873,-500.0,0.00010741,2]
[346602578,1735123987917,-500.0,0.00010741,2]
[346602579,1735123987958,-500.0,0.00010741,2]
[346602580,1735123988004,-657.14,0.00010741,2]
[346602581,1735123988049,-592.61,0.00010741,2]
[346602582,1735123988097,-1250.87,0.00010741,2]
[346602583,1735123988145,-1651.28,0.00010741,2]
[346602584,1735123988194,-500.0,0.00010741,2]
[346602585,1735123988239,-1475.81,0.00010741,2]
[346602586,1735123988284,-500.0,0.00010741,2]
[346602587,1735123988326,-1768.15,0.00010741,2]
[346602588,1735123988370,-949.41,0.00010741,2]
[346602589,1735123988417,-500.0,0.00010741,2]
[346602590,1735123988464,-615.43,0.00010741,2]
[346602591,1735123988512,-500.0,0.00010741,2]
[346602592,1735123988557,-1213.62,0.00010741,2]
[346602593,1735123988602,-1216.96,0.00010741,2]
[346602594,1735123988646,-755.99,0.00010741,2]
[346602595,1735123988690,-500.0,0.00010741,2]
[346602596,1735123988733,-500.0,0.00010741,2]
[346602597,1735123988776,-1085.17,0.00010741,2]
[346602598,1735123988820,-500.0,0.00010741,2]
[346602599,1735123988864,-1510.59,0.00010741,2]
[346602600,1735123988907,-1431.46,0.00010741,2]
[346602601,1735123988951,-500.0,0.00010741,2]
[346602602,1735123988995,-1328.84,0.00010741,2]
[346602603,1735123989040,-2700.17,0.00010741,2]
[346602604,1735123989085,-2119.65,0.00010741,2]
[346602605,1735123989130,-950.7,0.00010741,2]
[346602606,1735123989174,-1406.12,0.00010741,2]
[346602607,1735123989222,-500.0,0.00010741,2]
[346602608,1735123989268,-2748.42,0.00010741,2]
[346602609,1735123989314,-2591.44,0.00010741,2]
[346602610,1735123989357,-538.6,0.00010741,2]
[346602611,1735123989399,-500.0,0.00010741,2]
[346602612,1735123989445,-500.0,0.00010741,2]
[346602613,1735123989491,-670.11,0.00010741,2]
[346602614,1735123989537,-657.2,0.00010741,2]
[346602615,1735123989582,-500.0,0.00010741,2]
[346602616,1735123989624,-500.0,0.00010741,2]
[346602617,1735123989671,-1236.04,0.00010741,2]
[346602618,1735123989716,-672.78,0.00010741,2]
[346602619,1735123989767,-1313.14,0.00010742,2]
[346602620,1735123989814,-782.37,0.00010742,2]
[346602621,1735123989859,-853.27,0.00010742,2]
[346602622,1735123989903,-500.0,0.00010742,2]
[346602623,1735123989949,-566.1,0.00010742,2]
[346602624,1735123989995,-1123.54,0.00010742,2]
[346602625,1735123990043,-588.96,0.00010742,2]
[346602626,1735123990090,-500.0,0.00010742,2]
[346602627,1735123990136,-500.0,0.00010742,2]
[346602628,1735123990184,-500.0,0.00010742,2]
[346602629,1735123990233,-500.0,0.00010742,2]
[346602630,1735123990281,-540.29,0.00010742,2]
[346602631,1735123990330,-500.0,0.00010742,2]
[346602632,1735123990379,-910.07,0.00010742,2]
[346602633,1735123990427,-500.0,0.00010742,2]
[346602634,1735123990473,-1034.43,0.00010742,2]
[346602635,1735123990524,-701.77,0.00010742,2]
[346602636,1735123990572,-500.0,0.00010742,2]
[346602637,1735123990622,-500.0,0.00010742,2]
[346602638,1735123990668,-500.0,0.00010742,2]
[346602639,1735123990715,-500.0,0.00010742,2]
[346602640,1735123990761,-593.72,0.00010742,2]
[346602641,1735123990808,-823.23,0.00010742,2]
[346602642,1735123990852,-561.91,0.00010742,2]
[346602643,1735123990897,-803.22,0.00010742,2]
[346602644,1735123990943,-769.08,0.00010742,2]
[346602645,1735123990990,-505.89,0.00010742,2]
[346602646,1735123991033,-500.0,0.00010742,2]
[346602647,1735123991079,-519.4,0.00010742,2]
[346602648,1735123991125,-500.0,0.00010742,2]
[346602649,1735123991175,-500.0,0.00010742,2]
[346602650,1735123991480,-1047.69,0.00010742,2]
[346602651,1735123991528,-500.0,0.00010742,2]
[346602652,1735123991571,-795.42,0.00010742,2]
[346602653,1735123991616,-500.0,0.00010742,2]
[346602654,1735123991658,-500.0,0.00010742,2]
[346602655,1735123991702,-791.77,0.00010742,2]
[346602656,1735123991750,-761.95,0.00010742,2]
[346602657,1735123991795,-500.0,0.00010742,2]
[346602658,1735123991843,-764.41,0.00010742,2]
[346602659,1735123991889,-500.0,0.00010742,2]
[346602660,1735123991937,-668.48,0.00010742,2]
[346602661,1735123991980,-537.41,0.00010742,2]
[346602662,1735123992025,-1164.9,0.00010742,2]
[346602663,1735123992069,-500.0,0.00010742,2]
[346602664,1735123992117,-560.33,0.00010742,2]
[346602665,1735123992165,-500.0,0.00010742,2]
[346602666,1735123992215,-634.6,0.00010742,2]
[346602667,1735123992267,-1047.44,0.00010742,2]
[346602668,1735123992315,-500.0,0.00010742,2]
[346602669,1735123992360,-500.0,0.00010742,2]
[346602670,1735123992405,-1008.99,0.00010742,2]
[346602671,1735123992455,-566.07,0.00010742,2]
[346602672,1735123992501,-1350.23,0.00010742,2]
[346602673,1735123992547,-500.0,0.00010742,2]
[346602674,1735123992596,-500.0,0.00010742,2]
[346602675,1735123992640,-150.0,0.00010744,2]
[346602676,1735123992685,-200.12,0.00010745,2]
[346602677,1735123992729,-429.10429252,0.00010745,2]
[346602678,1735123992774,-150.0,0.00010748,2]
[346602679,1735123992821,-150.0,0.00010753,2]
[346602680,1735123992864,-150.0,0.00010754,2]
[346602681,1735123992907,-150.0,0.00010759,2]
[346602682,1735123992951,-150.0,0.00010762,2]
[346602683,1735123992997,-150.0,0.00010768,2]
[346602684,1735123993043,-150.0,0.00010771,2]
[346602685,1735123993096,-150.0,0.00010772,2]
[346602686,1735123993143,-150.0,0.00010773,2]
[346602687,1735123993193,-150.0,0.00010773,2]
[346602688,1735123993243,-150.0,0.00010779,2]
[346602689,1735123993294,-150.0,0.00010779,2]
[346602690,1735123993343,-2500.0,0.0001078,2]
[346602691,1735123993393,-150.0,0.00010781,2]
[346602692,1735123993445,-150.0,0.00010784,2]
[346602693,1735123993492,-150.0,0.00010785,2]
[346602694,1735123993542,-150.0,0.00010787,2]
[346602695,1735123993590,-150.0,0.00010794,2]
[346602696,1735123993639,-150.0,0.00010794,2]
[346602697,1735123993687,-150.0,0.00010795,2]
[346602698,1735123993739,-150.0,0.00010797,2]
[346602699,1735123993790,-150.0,0.000108,2]
[346602700,1735123993842,-150.0,0.00010804,2]
[346602701,1735123993892,-150.0,0.00010804,2]
[346602702,1735123993942,-150.0,0.00010808,2]
[346602703,1735123993993,-150.0,0.00010822,2]
[346602704,1735123994044,-150.0,0.00010822,2]
[346602705,1735123994098,-150.0,0.00010822,2]
[346602706,1735123994154,-150.0,0.00010823,2]
[346602707,1735123994207,-150.0,0.00010827,2]
[346602708,1735123994261,-150.0,0.00010834,2]
[346602709,1735123994312,-1105.45646087,0.00010835,2]
[346602710,1735123994363,-150.0,0.00010835,2]
[346602711,1735123994416,-150.0,0.00010842,2]
[346602712,1735123994467,-150.0,0.00010849,2]
[346602713,1735123994519,-150.0,0.0001085,2]
[346602714,1735123994568,-150.0,0.00010852,2]
[346602715,1735123994616,-150.0,0.00010852,2]
[346602716,1735123994663,-150.0,0.00010855,2]
[346602717,1735123994711,-150.0,0.00010863,2]
[346602718,1735123994763,-150.0,0.00010866,2]
[346602719,1735123994818,-150.0,0.00010869,2]
[346602720,1735123994867,-150.0,0.00010873,2]
[346602721,1735123994915,-150.0,0.00010873,2]
[346602722,1735123994964,-150.0,0.00010875,2]
[346602723,1735123995012,-150.0,0.00010876,2]
[346602724,1735123995059,-709.41,0.00010877,2]
[346602725,1735123995108,-150.0,0.0001088,2]
[346602726,1735123995155,-150.0,0.00010885,2]
[346602727,1735123995205,-150.0,0.00010886,2]
[346602728,1735123995254,-150.0,0.00010891,2]
[346602729,1735123995301,-150.0,0.00010892,2]
[346602730,1735123995348,-150.0,0.00010896,2]
[346602731,1735123995394,-150.0,0.000109,2]
[346602732,1735123995438,-165.61228422,0.000109,2]
[346602733,1735123995482,-150.0,0.00010906,2]
[346602734,1735123995530,-150.0,0.0001091,2]
[346602735,1735123995576,-150.0,0.00010917,2]
[346602736,1735123995622,-150.0,0.00010919,2]
[346602737,1735123995666,-150.0,0.00010932,2]
[346602738,1735123995709,-150.0,0.00010933,2]
[346602739,1735123995752,-150.0,0.00010934,2]
[346602740,1735123995794,-150.0,0.00010935,2]
[346602741,1735123995836,-150.0,0.00010938,2]
[346602742,1735123995880,-150.0,0.0001094,2]
[346602743,1735123995925,-150.0,0.00010941,2]
[346602744,1735123995969,-150.0,0.00010942,2]
[346602745,1735123996019,-150.0,0.00010943,2]
[346602746,1735123996067,-150.0,0.00010943,2]
[346602747,1735123996114,-150.0,0.00010943,2]
[346602748,1735123996162,-150.0,0.00010944,2]
[346602749,1735123996213,-150.0,0.00010947,2]
[346602750,1735123996259,-1013.49,0.00010949,2]
[346602751,1735123996305,-15765.17,0.00010949,2]
[346602752,1735123996351,-500.0,0.00010949,2]
[346602753,1735123996398,-250000.0,0.0001095,2]
[346602754,1735123996450,-150.0,0.00010951,2]
[346602755,1735123996500,-150.0,0.00010952,2]
[346602756,1735123996550,-150.0,0.00010953,2]
[346602757,1735123996691,-150.0,0.00010956,2]
[346602758,1735123996739,-150.0,0.00010958,2]
[346602759,1735123996786,-150.0,0.00010959,2]
[346602760,1735123996830,-150.0,0.00010965,2]
[346602761,1735123996877,-150.0,0.00010968,2]
[346602762,1735123996922,-150.0,0.0001097,2]
[346602763,1735123996970,-150.0,0.00010972,2]
[346602764,1735123997015,-150.0,0.00010973,2]
[346602765,1735123997064,-150.0,0.00010974,2]
[346602766,1735123997108,-150.0,0.00010978,2]
[346602767,1735123997155,-150.0,0.00010979,2]
[346602768,1735123997202,-150.0,0.00010979,2]
[346602769,1735123997250,-150.0,0.00010981,2]
[346602770,1735123997293,-150.0,0.00010983,2]
[346602771,1735123997339,-150.0,0.00010985,2]
[346602772,1735123997383,-150.0,0.00010987,2]
[346602773,1735123997428,-150.0,0.00010988,2]
[346602774,1735123997482,-1295.6276512,0.00010994,2]
[346602775,1735123997531,-1805.9765388,0.00010994,2]
[346602776,1735123997576,-150.0,0.00010996,2]
[346602777,1735123997621,-150.0,0.00010996,2]
[346602778,1735123997664,-314.4155514,0.00010997,2]
[346602779,1735123997710,-150.0,0.00010997,2]
[346602780,1735123997752,-1013.49,0.00010999,2]
[346602781,1735123997796,-1013.49,0.00010999,2]
[346602782,1735123997841,-1013.49,0.00010999,2]
[346602783,1735123997884,-1013.49,0.00010999,2]
[346602784,1735123997925,-1013.49,0.00010999,2]
[346602785,1735123997968,-1013.56531334,0.00010999,2]
[346602786,1735123998012,-15765.17,0.00010999,2]
[346602787,1735123998061,-500.0,0.00010999,2]
[346602788,1735123998112,-500.0,0.00010999,2]
[346602789,1735123998160,-335904.16830422,0.00011,2]
[346602790,1735123998862,500.0,9.643e-05,2]
[346602791,1735123998965,500.0,9.917e-05,2]
[346602792,1735123999023,500.0,0.00010449,2]
[346602793,1735123999077,500.0,9.645e-05,2]
[346602794,1735123999141,1000.0,0.00010997,2]
[346602795,1735123999235,500.0,0.00010191,2]
[346602796,1735123999334,303.94,9.919e-05,2]
[346602797,1735123999473,500.0,0.00010465,2]
[346602798,1735123999650,500.0,0.00010739,2]
[346602799,1735123999716,500.0,9.644e-05,2]
[346602800,1735123999828,500.0,9.918e-05,2]
[346602801,1735123999912,500.0,9.645e-05,2]
[346602802,1735123999999,500.0,0.00010192,2]
[346602803,1735124000090,500.0,9.919e-05,2]
[346602804,1735124000164,500.0,9.644e-05,2]
[346602805,1735124000223,500.0,0.00010466,2]
[346602806,1735124000503,500.0,0.00010193,2]
[346602807,1735124000567,500.0,9.918e-05,2]
[346602808,1735124000643,500.0,0.0001074,2]
[346602809,1735124000740,427.86,0.00010467,2]
[346602810,1735124000919,500.0,9.643e-05,2]
[346602811,1735124000992,500.0,9.644e-05,2]
[346602812,1735124001074,500.0,9.643e-05,2]
[346602813,1735124001331,500.0,9.917e-05,2]
[346602814,1735124001509,500.0,9.645e-05,2]
[346602815,1735124001579,500.0,9.919e-05,2]
[346602816,1735124001639,500.0,9.917e-05,2]
[346602817,1735124001693,500.0,9.644e-05,2]
[346602818,1735124001707,-150.0,0.00011001,2]
[346602819,1735124001717,-150.0,0.00011002,2]
[346602820,1735124001726,-150.0,0.00011003,2]
[346602821,1735124001736,-150.0,0.00011003,2]
[346602822,1735124001746,-150.0,0.00011008,2]
[346602823,1735124001755,-429.10429252,0.00011008,2]
[346602824,1735124001765,-150.0,0.00011011,2]
[346602825,1735124001775,-150.0,0.00011012,2]
[346602826,1735124001784,-150.0,0.00011013,2]
[346602827,1735124001793,-500.0,0.00011013,2]
[346602828,1735124001803,-500.0,0.00011013,2]
[346602829,1735124001813,-500.0,0.00011013,2]
[346602830,1735124001827,-431.10499422,0.00011013,2]
[346602831,1735124001837,-629.82,0.00011013,2]
[346602832,1735124001847,-500.0,0.00011013,2]
[346602833,1735124001856,-500.0,0.00011013,2]
[346602834,1735124001867,-500.0,0.00011013,2]
[346602835,1735124001877,-500.0,0.00011013,2]
[346602836,1735124001887,-500.0,0.00011013,2]
[346602837,1735124001897,-500.0,0.00011013,2]
[346602838,1735124001907,-500.0,0.00011013,2]
[346602839,1735124001918,-621.06162759,0.00011013,2]
[346602840,1735124001927,-500.0,0.00011013,2]
[346602841,1735124001937,-641.52,0.00011013,2]
[346602842,1735124001948,-435.78908567,0.00011013,2]
[346602843,1735124001960,-64.21091433,0.00011013,2]
[346602844,1735124001971,-509.23908567,0.00011013,2]
[346602845,1735124001984,-1543.37091433,0.00011013,2]
[346602846,1735124002265,-500.0,0.00011013,2]
[346602847,1735124002276,-500.0,0.00011013,2]
[346602848,1735124002286,-724.12,0.00011013,2]
[346602849,1735124002295,-2612.7,0.00011013,2]
[346602850,1735124002304,-2106.94,0.00011013,2]
[346602851,1735124002313,-2379.24709938,0.00011013,2]
[346602852,1735124002327,-9579.81139119,0.00011013,2]
[346602853,1735124002345,-1018.0,0.00011013,2]
[346602854,1735124002356,-2788.11150943,0.00011013,2]
[346602855,1735124002366,-500.0,0.00011013,2]
[346602856,1735124002376,-500.0,0.00011013,2]
[346602857,1735124002386,-2120.8,0.00011013,2]
[346602858,1735124002395,-500.0,0.00011013,2]
[346602859,1735124002404,-500.0,0.00011013,2]
[346602860,1735124002415,-8111.62,0.00011013,2]
[346602861,1735124002427,-561.14,0.00011013,2]
[346602862,1735124002436,-500.0,0.00011013,2]
[346602863,1735124002445,-500.0,0.00011013,2]
[346602864,1735124002455,-13374.8,0.00011013,2]
[346602865,1735124002466,-895.0,0.00011013,2]
[346602866,1735124002475,-500.0,0.00011013,2]
[346602867,1735124002484,-1080.93,0.00011013,2]
[346602868,1735124002494,-500.0,0.00011013,2]